[Event "4NCL Div 1 2024-25"]
[Site "England"]
[Date "2025.01.25"]
[Round "3.13"]
[White "Duncan, Chris R"]
[Black "Grieve, Harry"]
[Result "0-1"]
[Annotator "TA"]
[ECO "D31"]
[WhiteElo "2167"]
[BlackElo "2464"]
[PlyCount "120"]
[EventDate "2024.11.23"]
[EventType "team-tourn"]
[EventCountry "ENG"]
[SourceTitle "playchess.com"]
[Source "ChessBase"]
[SourceQuality "1"]
[TimeControl "40/6000+30:3000+30"]

{[%evp 9,120,22,21,18,15,21,23,16,20,17,14,12,24,21,16,-101,-105,-100,-99,-94,-87,-109,-120,-114,-114,-112,-115,-135,-127,-145,-118,-124,-119,-168,-166,-171,-116,-135,-156,-155,-153,-158,-133,-132,-106,-104,-85,-96,-87,-100,-80,-79,-90,-91,-85,-76,-29,-83,-59,-59,-37,-109,0,-37,-57,-94,-92,-157,-41,-177,-193,-192,-179,-157,-176,-294,-287,-383,-373,-423,-424,-425,-414,-390,-372,-1029,-832,-12201,-4906,-1288,-10628,-892,-1611,-12804,-12806,-12806,-12797,-5397,-1956,-11920,-4627,-29975,-29965,-29974,-4958,-29987,-29988,-29988,-29988,-29989,-29988,-29993,-29994]} 1. d4 {[%emt 0:10:02]} d5 {[%emt 0:10:04]} 2. c4 {[%emt 0:00:04]} e6 {[%emt 0:00:04]} 3. Nc3 {[%emt 0:00:17]} a6 {[%emt 0:00:05]} 4. cxd5 {[%emt 0:00:09]} exd5 {[%emt 0:00:02]} 5. Bf4 {[%emt 0:00:15]} Nf6 {[%emt 0:00:05]} 6. e3 {[%emt 0:00:08] D31: Queen's Gambit Declined: Semi-Slav without ...Nf6 (+ Marshall Gambit and Noteboom) and Exchange Variation lines without ...Nf6.} Bd6 {[%emt 0:00:04]} 7. Bg5 {[%emt 0:00:04]} c6 {[%emt 0:00:31]} 8. Bd3 {[%emt 0:00:26] White has an edge.} O-O {[%emt 0:00:07]} 9. Qc2 {[%emt 0:00:07][%cal Od3h7]} h6 {[%emt 0:00:09]} 10. Bh4 {[%emt 0:00:03]} Re8 {[%emt 0:00:07]} 11. Nge2 {[%emt 0:00:32]} a5 {[%emt 0:00:35]} 12. O-O {[%emt 0:00:06] [#] 12.a3 is setting a new trend.} (12. a3 $11) 12... Bxh2+ $1 $17 {[%emt 0:00:35][%mdl 512]} 13. Kh1 {[%emt 0:04:37][%cal Oh4f6] Black must now prevent Bxf6!.} Bd6 {[%emt 0:00:48]} 14. Rad1 {[%emt 0:03:11]} Na6 {[%emt 0:04:42]} 15. Qd2 $146 {[%emt 0:00:52] [#]} (15. a3 Nc7 16. e4 dxe4 17. Nxe4 Be7 18. Nc5 Ncd5 19. Bf5 Bxf5 20. Qxf5 Bxc5 21. Bxf6 Qxf6 {0-1 Goltseva,E (2306)-Salinas Herrera,P (2514) Titled Tuesday intern op 4th Aug 10am blitz 2020 (1)}) 15... Ne4 $1 {[%emt 0:02:35]} 16. Bxd8 {[%emt 0:02:14]} Nxd2 {[%emt 0:00:06] Black is more active.} 17. Rxd2 {[%emt 0:00:44]} Rxd8 {[%emt 0:00:02]} 18. f3 {[%emt 0:01:58]} Nc7 {[%emt 0:10:30]} 19. Kg1 {[%emt 0:08:33]} Be6 {[%emt 0:12:04]} 20. Kf2 {[%emt 0:02:04]} h5 {[%emt 0:03:23]} 21. f4 {[%emt 0:09:33]} (21. Nf4 $17) 21... Bg4 $19 {[%emt 0:13:02]} 22. Ng1 {[%emt 0:13:14]} c5 {[%emt 0:04:39]} (22... g6 $19 23. Nf3 Kg7) 23. Nf3 {[%emt 0:04:30]} c4 {[%emt 0:07:15]} 24. Bc2 {[%emt 0:01:06]} b5 {[%emt 0:02:39]} 25. Ne5 {[%emt 0:00:30]} Bxe5 {[%emt 0:00:54]} 26. dxe5 {[%emt 0:03:38]} Rab8 {[%emt 0:09:02]} 27. Ne2 {[%emt 0:04:22]} Bxe2 {[%emt 0:02:50]} 28. Kxe2 {[%emt 0:00:09]} g6 {[%emt 0:05:30]} 29. Rfd1 {[%emt 0:04:46][%cal Oc2e4]} Rdc8 {[%emt 0:02:07]} 30. g3 {[%emt 0:03:31]} Kg7 {[%emt 0:02:50]} 31. Kf3 {[%emt 0:03:46]} b4 {[%emt 0:02:04]} 32. Ba4 {[%emt 0:01:31]} Rb6 {[%emt 0:02:02]} (32... Rd8 $17) 33. g4 {[%emt 0:04:48]} (33. Rc1 $11) 33... hxg4+ {[%emt 0:00:34]} 34. Kxg4 {[%emt 0:00:03]} f6 {[%emt 0:11:06]} 35. e4 {[%emt 0:04:45] [#]} fxe5 {[%emt 0:00:52]} (35... dxe4 $2 36. Rd7+ Kg8 37. Rd8+ Rxd8 38. Rxd8+ Kf7 39. Rd7+ Ke6 40. Rxc7 $18) ({Black should play} 35... f5+ $1 $17 36. exf5 gxf5+ 37. Kxf5 Rf8+ 38. Kg4 c3 (38... Rg6+ 39. Kf3 $15)) 36. exd5 {[%emt 0:00:27]} c3 $1 {[%emt 0:00:41]} 37. bxc3 {[%emt 0:02:19]} bxc3 {[%emt 0:00:03]} 38. Rc2 {[%emt 0:15:27] [#]} (38. Re2 $142 Rb4 39. Bc2) 38... Rd8 {[%emt 0:00:00]} ({Don't take} 38... Rb4 39. Rxc3 Rxa4 (39... Rxf4+ 40. Kg3 $15) 40. d6 $15) (38... Rf8 $1 $17 {[%cal Rf8f4]} 39. Rxc3 Nxd5 (39... Rxf4+ $2 40. Kg3 $19) 40. Rxd5 Rxf4+ 41. Kg3 (41. Kg5 $2 Rf5+ 42. Kg4 Rb4+ 43. Kg3 Rg5+ 44. Kh3 Rxa4 $19) 41... Rxa4 42. Rxe5 Rxa2) 39. Bb3 {[%emt 0:02:23] Now White is beyond hope.} (39. d6 $15 Ne6 (39... Rdxd6 40. Rxd6 Rxd6 41. Rxc3 $17) 40. Bb3 Nxf4 (40... Rdxd6 41. Rxd6 Rxd6 42. Rxc3 $17) 41. Rxc3) 39... Rb4 {[%emt 0:03:08]} 40. Rxc3 {[%emt 0:00:36]} Rxf4+ {[%emt 0:00:24]} 41. Kg3 {[%emt 0:50:51]} Nb5 {[%emt 0:24:09]} 42. Rf3 {[%emt 0:00:00]} (42. Rc5 $142 Nd6 43. Bc2) 42... a4 {[%emt 0:04:57]} 43. Rxf4 {[%emt 0:00:00]} exf4+ {[%emt 0:00:08]} 44. Kxf4 {[%emt 0:00:00]} axb3 {[%emt 0:00:21]} 45. axb3 {[%emt 0:00:00][%mdl 4096] Endgame KRN-KR} Nc3 {[%emt 0:05:54]} 46. Rd3 {[%emt 0:00:00]} Nxd5+ {[%emt 0:00:15]} 47. Kg5 $2 {[%emt 0:00:00] [#]} (47. Kg3) 47... Rh8 $1 {[%emt 0:01:04][%cal Oh8h1] ...Rh1! is the strong threat.} 48. Rd4 {[%emt 0:00:00]} (48. Kg4 Nf6+) 48... Rh5+ {[%emt 0:00:06]} 49. Kg4 {[%emt 0:00:00]} Nf6+ {[%emt 0:00:14]} 50. Kg3 {[%emt 0:00:00]} Rb5 {[%emt 0:00:16]} 51. Rd3 {[%emt 0:00:00]} g5 {[%emt 0:00:13]} 52. Kg2 {[%emt 0:00:00]} Kg6 {[%emt 0:00:06]} 53. Kg3 {[%emt 0:00:00]} Rb4 {[%emt 0:00:14] ( -> ...Ne4+)} 54. Kf3 {[%emt 0:00:00]} g4+ {[%emt 0:00:12]} 55. Kg2 {[%emt 0:00:00]} Kg5 {[%emt 0:00:07]} 56. Rc3 {[%emt 0:00:00]} Rd4 {[%emt 0:00:20]} (56... Ne4 $142 57. Rc7 Rxb3 58. Rg7+ Kf5 59. Rf7+ Nf6 60. Rf8 Kg5 61. Kf2 Ne4+ 62. Ke2 g3 63. Rg8+ Kf4 64. Rg6 Re3+ 65. Kd1 Ng5 (65... Kf3 $2 66. Kc2 $19) 66. Rf6+ Ke4 67. Rf8 g2 68. Re8+ Kf3 69. Rf8+ Kg4 70. Kc2 g1=Q (70... g1=R $2 71. Rd8 $19) 71. Rd8 Qg2+ 72. Rd2 Qe4+ (72... Re2 {is a self mate.} 73. Rxe2 Qxe2+ 74. Kb3 Qb5+ 75. Kc3 Nf3 76. Kc2 Kf4 77. Kc3 Ke3 78. Kc2 Nd2 79. Kd1 Qb1#) 73. Kb2 Qb4+ (73... Re2 74. Rxe2 Qxe2+ 75. Kb3 Qd3+ 76. Kb4 Ne4 77. Ka4 Qc4+ 78. Ka5 Qb3 79. Ka6 Nd6 80. Ka7 Qb7#) 74. Kc1 Qc3+ (74... Qc4+ 75. Rc2 Qb3 76. Rg2+ Kf3 77. Rg1 Rc3+ 78. Kd2 Qc2+ 79. Ke1 Qe2#) 75. Kd1 Qa1+ 76. Kc2 Rc3#) 57. Rc6 {[%emt 0:00:14]} Rd2+ {[%emt 0:00:12] Black mates.} 58. Kg1 {[%emt 0:00:10]} g3 {[%emt 0:00:12]} 59. Rc8 {[%emt 0:00:27]} Nh5 {[%emt 0:00:51]} 60. b4 {[%emt 0:00:51]} Nf4 {[%emt 0:00:16] Weighted Error Value: White=0.60/Black=0.11 (very precise)   Mistake:       	White=8     	Black=4      Inaccurate:     	White=4     	---        OK:         	White=17    	Black=18     Best:        	---       	Black=2      Strong:       	---       	Black=1      Brilliant:      	---       	Black=1} 0-1

[Event "4NCL Div 1 2024-25"]
[Site "England"]
[Date "2025.01.25"]
[Round "3.14"]
[White "Galyas, Miklos"]
[Black "Ledger, Dave J"]
[Result "1-0"]
[Annotator "TA"]
[ECO "E04"]
[WhiteElo "2374"]
[BlackElo "2191"]
[PlyCount "97"]
[EventDate "2024.11.23"]
[EventType "team-tourn"]
[EventCountry "ENG"]
[SourceTitle "playchess.com"]
[Source "ChessBase"]
[SourceQuality "1"]
[TimeControl "40/6000+30:3000+30"]

{[%evp 13,96,16,41,39,33,29,48,41,58,51,28,35,58,37,47,24,25,23,34,11,23,9,37,23,23,35,275,246,275,270,260,216,214,216,210,212,220,216,260,262,297,203,199,189,189,189,202,189,223,225,225,221,285,225,267,225,225,168,197,185,178,168,170,166,181,161,237,239,229,209,247,236,460,444,502,500,502,480,489,498,897,850,835,780,652]} 1. Nf3 {[%emt 0:10:03]} Nf6 {[%emt 0:10:13]} 2. g3 {[%emt 0:00:07]} d5 {[%emt 0:00:35]} 3. Bg2 {[%emt 0:00:06]} e6 {[%emt 0:00:36]} 4. O-O {[%emt 0:00:08]} c5 {[%emt 0:02:24]} 5. d4 {[%emt 0:03:21]} Nc6 {[%emt 0:01:25]} 6. c4 {[%emt 0:00:32]} dxc4 {[%emt 0:02:28]} 7. dxc5 {[%emt 0:00:37]} Bxc5 {[%emt 0:09:31]} 8. Qxd8+ {[%emt 0:08:50] E04: Open Catalan: 5 Nf3.} Kxd8 {[%emt 0:00:33]} 9. Nbd2 {[%emt 0:00:06]} Ke7 {[%emt 0:04:02]} 10. Nxc4 {[%emt 0:00:07] White is slightly better.} Rd8 {[%emt 0:00:38]} 11. b3 {[%emt 0:05:00]} Nd5 {[%emt 0:13:29]} 12. Bb2 {[%emt 0:03:35]} f6 $146 {[%emt 0:00:59]} (12... Kf8 13. Rfd1 f6 14. Rac1 Be7 {½-½ Pigozzi,M (2129)-Lukasiewicz,P (2257) W-ch WS/M/877 email 2023}) 13. Rac1 {[%emt 0:01:23][%cal Oc4e5]} Bd7 {[%emt 0:03:39]} 14. Nce5 {[%emt 0:08:42]} Bd6 {[%emt 0:01:43]} 15. Nxd7 {[%emt 0:06:15]} Rxd7 {[%emt 0:00:18]} 16. Nd2 {[%emt 0:02:13]} Rad8 {[%emt 0:03:49][%cal Ba8d8,Bd8d7,Bd7d2,Bd2d3,Bd3c3][%mdl 32]} 17. Ne4 {[%emt 0:02:45]} Be5 {[%emt 0:03:34]} 18. Ba3+ {[%emt 0:02:09] This pair of bishops is nice.} Kf7 $1 {[%emt 0:01:29]} 19. Nc5 $36 {[%emt 0:02:52][%mdl 2048] White has the initiative.} Nc3 $2 {[%emt 0:02:17] [#] A mistake that costs the game.} 20. Nxd7 $18 {[%emt 0:01:15]} Nxe2+ {[%emt 0:02:46]} 21. Kh1 {[%emt 0:00:03]} Rxd7 {[%emt 0:00:55]} 22. Bxc6 {[%emt 0:01:22]} bxc6 {[%emt 0:00:12]} 23. Rxc6 {[%emt 0:00:15]} Rd2 {[%emt 0:01:33]} 24. Ra6 {[%emt 0:07:51]} Bd4 {[%emt 0:01:27]} 25. Bd6 {[%emt 0:09:00]} Nc3 {[%emt 0:04:45][%cal Oc3d1]} 26. Bb4 {[%emt 0:03:30]} Rd3 {[%emt 0:10:04]} 27. Bxc3 {[%emt 0:01:55]} Rxc3 {[%emt 0:00:07][%mdl 4096] Endgame KRR-KRB} 28. Ra4 {[%emt 0:08:36]} Rd3 {[%emt 0:02:45]} 29. Rc4 {[%emt 0:00:38]} Rd2 {[%emt 0:02:04]} 30. Rfc1 {[%emt 0:02:02]} e5 {[%emt 0:01:56]} 31. Rc7+ {[%emt 0:02:01]} Kg6 {[%emt 0:00:05]} 32. R1c2 {[%emt 0:00:07]} Rd3 {[%emt 0:00:58]} 33. Kg2 {[%emt 0:00:24]} Bb6 {[%emt 0:01:29]} 34. R7c3 {[%emt 0:01:32]} Rd1 {[%emt 0:01:04]} 35. b4 {[%emt 0:03:33]} Ra1 {[%emt 0:01:28]} 36. Rc4 {[%emt 0:04:37]} Kf5 {[%emt 0:02:10]} 37. Rd2 {[%emt 0:02:07]} h5 {[%emt 0:00:45]} 38. h3 {[%emt 0:01:41]} Kg6 {[%emt 0:04:32]} 39. Kf3 {[%emt 0:01:07]} Kf7 {[%emt 0:03:01]} (39... Kf5 $142 40. Kg2 Bd4) 40. Ke4 {[%emt 0:01:14]} Re1+ {[%emt 0:00:42]} 41. Kd5 {[%emt 0:52:04] and a4 should not be overlooked} Rf1 {[%emt 1:02:30]} 42. Rcc2 {[%emt 0:02:12]} g5 $2 {[%emt 0:00:00] [#]} (42... Rb1 {is a better defense.} 43. Rb2 Rc1) 43. a4 {[%emt 0:01:22][%cal Ba2a4,Ba4a5][%mdl 32] White is clearly winning.} Rb1 {[%emt 0:00:00]} 44. a5 {[%emt 0:00:00]} Bd4 {[%emt 0:00:00]} 45. Rc4 {[%emt 0:00:00]} h4 {[%emt 0:00:00]} 46. gxh4 {[%emt 0:00:00]} gxh4 {[%emt 0:00:00]} (46... Kg6 $142 47. hxg5 fxg5) 47. Rcxd4 {[%emt 0:00:00]} exd4 {[%emt 0:00:00]} 48. Rxd4 {[%emt 0:00:00]} Rb2 {[%emt 0:00:00]} 49. Rxh4 {[%emt 0:00:00] Weighted Error Value: White=0.12 (very precise) /Black=0.41  Loses game:     	---       	Black=1      Mistake:       	---       	Black=3      Inaccurate:     	White=1     	Black=1      OK:         	White=20    	Black=11     Best:        	White=1     	Black=1      Strong:       	---       	Black=1} 1-0

[Event "4NCL Div 1 2024-25"]
[Site "England"]
[Date "2025.01.25"]
[Round "3.15"]
[White "Varney, Zoe"]
[Black "Wu, Li"]
[Result "1-0"]
[Annotator "TA"]
[ECO "B51"]
[WhiteElo "1996"]
[BlackElo "2318"]
[PlyCount "69"]
[EventDate "2024.11.23"]
[EventType "team-tourn"]
[EventCountry "ENG"]
[SourceTitle "playchess.com"]
[Source "ChessBase"]
[SourceQuality "1"]
[TimeControl "40/6000+30:3000+30"]

{[%evp 11,69,28,28,0,0,-107,-81,-95,-104,-101,-79,-94,-89,-103,0,0,2,15,8,21,17,27,53,53,56,56,196,38,130,36,47,30,45,22,29,37,41,35,111,10,22,0,102,71,109,-132,-5,-19,-12,-17,0,0,0,0,638,857,820,820,729,722]} 1. e4 {[%emt 0:10:03]} c5 {[%emt 0:10:11]} 2. Nf3 {[%emt 0:00:06]} Nc6 {[%emt 0:00:07]} 3. Bb5 {[%emt 0:00:07]} d6 {[%emt 0:00:45]} 4. Bxc6+ {[%emt 0:02:10]} bxc6 {[%emt 0:00:04]} 5. O-O {[%emt 0:00:40]} e5 {[%emt 0:05:29]} 6. c3 {[%emt 0:03:19]} f5 {[%emt 0:06:36]} 7. d4 {[%emt 0:14:40] B51: Sicilian: Moscow Variation (3 Bb5+) without 3...Bd7.} fxe4 {[%emt 0:09:06]} 8. Nxe5 {[%emt 0:36:44]} dxe5 $17 {[%emt 0:01:53]} 9. Qh5+ {[%emt 0:02:29] Black is better.} Kd7 {[%emt 0:00:03]} 10. dxe5 {[%emt 0:02:07]} Kc7 {[%emt 0:02:20]} 11. Rd1 {[%emt 0:22:01]} Qe7 {[%emt 0:00:41]} 12. Bf4 {[%emt 0:00:43]} Be6 {[%emt 0:00:22]} (12... Qe6 $17 {and ...Ne7 should not be overlooked} 13. Qe2 Qf5) 13. Nd2 $11 {[%emt 0:02:11]} Qe8 $146 {[%emt 0:47:45]} (13... g6 14. Qe2 g5 15. Bg3 h5 16. Nxe4 h4 17. Rd6 Bc8 18. Nxc5 hxg3 19. Rad1 gxf2+ 20. Qxf2 {1-0 Abergel,T (2475)-Pham,M (2480) FRA-chT2 West 0607 2006 (9.1)}) 14. Qe2 {[%emt 0:00:57]} Ne7 {[%emt 0:00:03]} 15. Nxe4 {[%emt 0:03:36]} (15. Qxe4 Qg6 16. Qe2 Qg4 17. Qxg4 Bxg4 $19) 15... Nd5 {[%emt 0:00:03]} 16. Bg3 {[%emt 0:02:02][%mdl 1024] White has compensation.} a5 {[%emt 0:01:37]} 17. c4 {[%emt 0:04:01][%cal Oe4d6]} Nb6 {[%emt 0:00:04]} 18. b3 {[%emt 0:00:05]} Be7 {[%emt 0:03:20]} (18... Qg6 $14) 19. Qe3 $2 {[%emt 0:00:46]} (19. Rd6 $1 $18 {[%cal Rd6e6]} Bxd6 20. exd6+ Kd8 21. Bh4+ (21. Nxc5 Bd7 $14) 21... Kc8 (21... Kd7 $2 22. Nxc5+ Kc8 23. Nxe6 $18) 22. d7+ (22. Nxc5 Bd7 $14) 22... Qxd7 (22... Bxd7 $2 23. Nd6+ Kc7 24. Nxe8+ Rhxe8 25. Qh5 $18) 23. Rd1 (23. Nxc5 Qf7 $11)) 19... Nd7 {[%emt 0:01:38]} (19... Qf7 $1 $14) 20. Rd2 {[%emt 0:00:06] White has more active pieces.} (20. Nf6 $1 $16 {[%cal Rf6e8]} gxf6 21. exf6+ Kb6 22. fxe7 (22. Qxe6 $2 Bxf6 23. Qxe8 Raxe8 $19) 22... Qxe7 23. Rd6) 20... Qg6 $14 {[%emt 0:04:59]} 21. Rad1 {[%emt 0:00:50][%cal Od2d7] Strong Rooks White (d1+d2)} Rhd8 {[%emt 0:00:04]} 22. h3 {[%emt 0:00:51]} h5 {[%emt 0:01:22][%cal Bh7h5,Bh5h4][%mdl 32]} 23. f4 {[%emt 0:00:06]} h4 {[%emt 0:01:51]} 24. Bf2 {[%emt 0:00:12]} a4 {[%emt 0:02:53]} ({Black should try} 24... Ra6 $14) 25. Nd6 {[%emt 0:01:24]} ({White must play} 25. b4 $1 $16 {[%cal Rb4b5]}) 25... axb3 {[%emt 0:00:34]} 26. axb3 {[%emt 0:00:05]} Ra3 {[%emt 0:02:44]} (26... Rf8 $1 $11 {remains equal.}) 27. Qf3 {[%emt 0:00:07]} Rf8 {[%emt 0:01:09] [#]} 28. f5 $2 {[%emt 0:00:32] Really sharp!} Rxf5 {[%emt 0:04:41]} (28... Nxe5 29. Qe3 Rxf5 (29... Bxf5 30. Qxe5 Qe6 31. Nb5+ Kb7 32. Qc7+ Ka8 33. Nxa3 $18) 30. Nxf5 Qxf5 31. Re2 Bxc4 32. Qxe5+ Qxe5 33. Rxe5 $16) (28... Bxf5 $17 29. Qc3 (29. Nxf5 $2 Nxe5 $19) 29... Bg5) 29. Nxf5 $11 {[%emt 0:00:09]} Qxf5 {[%emt 0:00:19]} ({Reject} 29... Nxe5 $6 30. Qe3 Qxf5 (30... Bxf5 $2 31. Qxe5+ $18) 31. Re2 $16) 30. Qc3 {[%emt 0:01:04]} g5 {[%emt 0:01:19][%cal Og5g4]} 31. Ra1 {[%emt 0:00:30]} Rxa1+ {[%emt 0:00:24]} (31... Qxe5 $2 32. Rxd7+ (32. Rxa3 $2 Qxc3 33. Raa2 Bf6 $19) 32... Kxd7 33. Qxe5 $18) 32. Qxa1 {[%emt 0:00:04]} Kb7 {[%emt 0:01:28][%mdl 8192] Wards off Qa7+} (32... Nxe5 $2 {too greedy.} 33. Qa7+ Kc8 34. Qxe7 $18) (32... Qe4 $11) 33. Ra2 $18 {[%emt 0:00:10] aiming for Ra8. White is clearly winning.} Qxe5 {[%emt 0:00:35]} 34. Ra7+ {[%emt 0:00:10]} Kc8 {[%emt 0:00:13]} 35. Qxe5 {[%emt 0:01:13] Weighted Error Value: White=0.26 (precise) /Black=0.44  Loses game:     	---       	Black=1      Mistake:       	White=5     	Black=6      Inaccurate:     	White=1     	Black=2      OK:         	White=8     	Black=7      Best:        	White=4     	Black=4} 1-0

[Event "4NCL Div 1 2024-25"]
[Site "England"]
[Date "2025.01.25"]
[Round "3.16"]
[White "Terbe, Julianna"]
[Black "Ledger, Stephen C"]
[Result "1-0"]
[Annotator "TA"]
[ECO "A35"]
[WhiteElo "2225"]
[BlackElo "2013"]
[PlyCount "77"]
[EventDate "2024.11.23"]
[EventType "team-tourn"]
[EventCountry "ENG"]
[SourceTitle "playchess.com"]
[Source "ChessBase"]
[SourceQuality "1"]
[TimeControl "40/6000+30:3000+30"]

{[%evp 23,77,30,56,56,50,37,30,33,37,26,45,34,36,29,83,91,222,120,114,116,110,108,137,127,140,133,183,30,42,28,26,8,17,20,22,28,53,36,47,39,49,41,61,66,110,80,149,164,181,171,215,200,274,214,1165,1195]} 1. Nf3 {[%emt 0:10:03]} c5 {[%emt 0:10:29]} 2. c4 {[%emt 0:00:15]} Nc6 {[%emt 0:00:46]} 3. Nc3 {[%emt 0:00:22]} g6 {[%emt 0:00:56]} 4. e3 {[%emt 0:00:13]} Nf6 {[%emt 0:05:23][%cal Bg8f6,Bf6d5,Bd5c3][%mdl 32]} 5. d4 {[%emt 0:00:16]} cxd4 {[%emt 0:03:51]} 6. exd4 {[%emt 0:00:07]} d5 {[%emt 0:01:58]} 7. cxd5 {[%emt 0:00:20]} Nxd5 {[%emt 0:01:39]} 8. Qb3 {[%emt 0:01:16]} Nxc3 {[%emt 0:05:32]} 9. Bc4 {[%emt 0:00:29]} Nd5 {[%emt 0:06:49]} 10. Bxd5 {[%emt 0:00:11]} e6 {[%emt 0:00:17]} 11. Bxc6+ {[%emt 0:00:06]} bxc6 {[%emt 0:00:12]} 12. O-O {[%emt 0:00:22]} Bg7 {[%emt 0:02:06][%cal Oe8g8]} 13. Bf4 {[%emt 0:04:24]} O-O {[%emt 0:04:34][%cal Od8d5] Black is weak on the dark squares} 14. Rfd1 {[%emt 0:06:05][%cal Bf1d1,Bd1d3,Bd3h3][%mdl 32]} Ba6 {[%emt 0:05:21][%cal Bc8a6,Ba6c4,Bc4d5][%mdl 32]} 15. Qe3 {[%emt 0:02:58] Inhibits Be2. White has an edge.} Bc4 {[%emt 0:06:18]} 16. Ne5 {[%emt 0:06:26]} Bd5 {[%emt 0:00:58]} 17. Rac1 {[%emt 0:01:24]} Rc8 {[%emt 0:08:22]} 18. Rd3 {[%emt 0:08:22]} Bxe5 {[%emt 0:07:48]} (18... f6 $11 {keeps the balance.} 19. Nc4 (19. Nxc6 Qd7 $14) 19... Qd7) 19. dxe5 $16 {[%emt 0:02:13]} Qh4 {[%emt 0:02:51]} (19... Qb6 $16 {keeps fighting.}) 20. Qd2 {[%emt 0:11:55]} (20. Bh6 $18) 20... f5 {[%emt 0:06:42]} 21. Rh3 {[%emt 0:06:32]} ({Much less strong is} 21. exf6 Qxf6 22. Bh6 Rf7 $18) 21... Qe7 {[%emt 0:04:43]} 22. Bg5 {[%emt 0:00:35]} Qb7 {[%emt 0:01:11]} 23. Bf6 {[%emt 0:02:05]} Rc7 {[%emt 0:03:02][%cal Of8b8]} 24. Rg3 {[%emt 0:03:17]} Rd7 {[%emt 0:04:41] [#]} (24... Kf7 $16 {was called for.} 25. b3 Ke8) 25. Qe2 $2 {[%emt 0:21:51]} (25. h4 $1 $18 {[%cal Rh4h5]}) 25... Qb5 $1 $11 {[%emt 0:05:17]} 26. Qxb5 {[%emt 0:04:48]} (26. Qe3 {keeps more tension.} Qxb2 27. h4 Rxf6 28. exf6 Qxf6 29. Qh6) 26... cxb5 {[%emt 0:00:09]} 27. b3 {[%emt 0:00:02]} a6 {[%emt 0:05:18]} 28. h4 {[%emt 0:01:47]} Kf7 {[%emt 0:01:21]} 29. Rgc3 {[%emt 0:01:55]} Bb7 {[%emt 0:01:30]} 30. Rc7 {[%emt 0:02:17]} Ke8 {[%emt 0:01:11]} 31. R7c2 {[%emt 0:02:01]} Kf7 {[%emt 0:00:51]} 32. f3 $36 {[%emt 0:00:11][%mdl 2048] White has good play.} Ra8 {[%emt 0:01:56]} 33. Kf2 {[%emt 0:01:00]} Rb8 {[%emt 0:01:51]} 34. Ke3 {[%emt 0:01:35]} Ra8 {[%emt 0:00:19]} (34... Rg8 $142) 35. Rc7 $16 {[%emt 0:02:24]} Ke8 {[%emt 0:00:33]} 36. Kf4 {[%emt 0:00:24]} h6 {[%emt 0:00:55] [#]} 37. Bg7 $1 {[%emt 0:02:03]} Rad8 {[%emt 0:00:46]} 38. Bxh6 {[%emt 0:00:23]} Rf7 $2 {[%emt 0:00:32]} (38... a5 39. Bg7 Rd4+ 40. Kg5 R8d7 41. Kxg6 a4) 39. Rxf7 {[%emt 0:01:06] Weighted Error Value: White=0.17 (very precise) /Black=0.23 (precise) .  Mistake:       	White=2     	Black=5      Inaccurate:     	---       	Black=2      OK:         	White=12    	Black=7      Best:        	White=3     	Black=1      Strong:       	White=1     	Black=1} 1-0